Cogmind - Beta 16.1 @@@ ROGUE MODE // 2026.03.02 @ 23:21:36 Player: TheSkyeDoctor Result: Destroyed by A-27 Freighter with PD Laser Performance ------------- Evolutions (3) 1500 Regions Visited (6) 1200 Robots Destroyed (58) 290 Value Destroyed (1870) 1870 Prototype IDs (0) 0 Alien Tech Used (0) 0 Bonus (0) 0 TOTAL SCORE: 4860 Bonus ------- None Cogmind --------- Core Integrity 0/700 Matter 108/300 Energy 58/100 System Corruption 24% Temperature Cool (12) Movement Rolling (175) Ox5 Location -7/Factory Parts ------- > --- POWER (1) -------- (None) > --- PROPULSION (3) --- Light Treads Compact Wheel > --- UTILITY (7) ------ Huge Storage Unit Terrain Scanner Advanced Terrain Scan Processor Targeting Computer Target Analyzer Hacking Suite > --- WEAPON (2) ------- Heavy Ion Cannon > --- INVENTORY (25) --- Light Deuterium Engine Nuclear Core Medium Treads Melee Analysis Suite Target Analyzer Remote Datajack Peak State ------------ > --- POWER ------------ Light Nuclear Core > --- PROPULSION ------- Armored Treads Wheel Compact Wheel > --- UTILITY ---------- Improved Heat Sink Large Storage Unit Advanced Targeting Computer Target Analyzer Hardened Medium Armor Plating Medium Reactive Plating Hacking Suite > --- WEAPON ----------- Heavy Assault Rifle Katana > --- INVENTORY -------- Light Nuclear Core Advanced Terrain Scan Processor Seismic Detector Advanced Targeting Computer Hardened Medium Armor Plating Medium Reactive Plating Medium Reactive Plating Medium Reactive Plating Insulated Plating Improved Shield Generator Ion Cannon Grenade Launcher Katana [Rating: 37] Favorites ----------- Power Light Ion Engine Engine Light Ion Engine Power Core Light Nuclear Core Propulsion Light Treads Treads Light Treads Wheel Compact Wheel Utility Hacking Suite Device Seismic Detector Storage Large Storage Unit Processor Target Analyzer Hackware Hacking Suite Protection Light Armor Plating Weapon Katana Energy Cannon Ion Cannon Ballistic Gun Heavy Assault Rifle Ballistic Cannon Improved Light Cannon Launcher Missile Launcher Slashing Weapon Katana Build | -11 -10 -9 -8 -7 -7 -7 ------- Run | Yrd Mat Mat Mat Fac Was Fac Slots Evolved 6 | . . 2 2 2 . . Power . | . . . . . . . Propulsion 1 | . . . 1 . . . Utility 5 | . . 2 1 2 . . Weapon . | . . . . . . . Parts Attached 64 | 7 3 5 13 6 . 30 Power 6 | 1 . . 2 . . 3 Engine 4 | 1 . . 1 . . 2 Core 2 | . . . 1 . . 1 Reactor . | . . . . . . . Propulsion 16 | 2 . . 4 1 . 9 Treads 8 | 2 . . 2 1 . 3 Leg . | . . . . . . . Wheel 8 | . . . 2 . . 6 Hover . | . . . . . . . Flight . | . . . . . . . Utility 29 | 2 2 3 5 4 . 13 Device 8 | 1 1 1 1 1 . 3 Storage 4 | 1 1 . . . . 2 Processor 4 | . . . 1 2 . 1 Hackware 1 | . . . 1 . . . Protection 12 | . . 2 2 1 . 7 Artifact . | . . . . . . . Weapon 13 | 2 1 2 2 1 . 5 Energy Gun . | . . . . . . . Energy Cannon 3 | . . . 2 . . 1 Ballistic Gun 4 | 2 1 1 . . . . Ballistic Cannon 2 | . . 1 . . . 1 Launcher 2 | . . . . . . 2 Special Weapon . | . . . . . . . Impact Weapon . | . . . . . . . Slashing Weapon 2 | . . . . 1 . 1 Piercing Weapon . | . . . . . . . Special Melee Weapon . | . . . . . . . Unidentified Prototypes . | . . . . . . . Parts Lost 32 | . . 2 8 . 5 17 Power 5 | . . 1 1 . 1 2 Propulsion 11 | . . . 3 . 2 6 Utility 9 | . . 1 2 . 1 5 Weapon 7 | . . . 2 . 1 4 Highest Loss Streak 5 | . . 1 3 . 4 5 To Critical Strikes . | . . . . . . . Average Backups 7 | 2 6 6 10 13 12 4 Power . | . 1 1 . 1 . . Propulsion 1 | 1 2 2 2 . 1 1 Utility 3 | . 2 1 5 8 6 1 Weapon 1 | . . 1 2 3 2 . Tool/Special . | . . . . . . . Unused Backups 16 | . . . 2 2 6 6 Power 2 | . . . . . . 2 Propulsion 1 | . . . . . . 1 Utility 10 | . . . 2 1 5 2 Weapon 2 | . . . . 1 1 . Tool/Special 1 | . . . . . . 1 Average Slot Usage (%) 89 | . 87 98 88 99 79 87 Engine 6 | . 14 10 6 . . 5 Core 1 | . . . 2 7 5 . Treads 12 | . 28 22 20 7 4 1 Wheel 8 | . . . . 13 7 18 Device 9 | . 2 18 12 13 12 6 Storage 6 | . 14 11 9 7 5 1 Processor 11 | . . . 3 17 22 22 Hackware 5 | . . . 6 7 7 7 Protection 8 | . . 13 9 6 . 10 Energy Cannon 2 | . . . 8 . . . Ballistic Gun 4 | . 28 11 . 7 5 . Ballistic Cannon 3 | . . 10 8 . . . Launcher 1 | . . . . . . 3 Slashing Weapon 3 | . . . . 6 6 6 Peak Build Rating 37 | 7 8 12 29 37 35 35 Average Rating 23 | 5 6 11 20 35 29 29 On Entrance 14 | . 7 7 10 29 34 11 Avg Prop Armor Cover (%) 9 | . . . 9 9 . 15 Naked Turns . | . . . . . . . Heaviest Build 104 | 12 31 35 44 63 32 104 Greatest Support 68 | 40 40 40 60 40 40 68 Greatest Overweight (x) 9 | . . . 1 2 2 9 Average Overweight (x) . | . . . . 1 . . Largest Inventory Capacity 25 | 8 15 15 15 15 15 25 Average Capacity 11 | 6 8 15 15 15 12 8 Most Carried 15 | 4 9 8 15 15 15 9 Average Carried 7 | 2 6 6 10 13 12 4 Final Capacity 25 | 8 15 15 15 15 5 25 Final Carried 15 | 4 7 7 12 15 5 6 Class Distribution -------------------- 79% | Mutant 20% | Scavenger-Mutant Dominant Class ---------------- Mutant | -10/Materials Mutant | -9/Materials Mutant | -8/Materials Scavenger-Mutant | -7/Factory Mutant | -7/Waste Mutant | -7/Factory Resources | -11 -10 -9 -8 -7 -7 -7 ----------- Run | Yrd Mat Mat Mat Fac Was Fac Matter Collected 1568 | 290 62 218 433 75 . 490 Remotely . | . . . . . . . Salvage Created 1909 | 92 62 269 848 75 . 563 Parts 105 | 7 8 13 44 3 . 30 Haulers Intercepted 1 | . . . . . . 1 Recyclers Shooed . | . . . . . . . Parts Field Recycled . | . . . . . . . Retrieved Matter . | . . . . . . . Parts Self-Destructed . | . . . . . . . Prevented . | . . . . . . . Parts Restored . | . . . . . . . Kills | -11 -10 -9 -8 -7 -7 -7 ------- Run | Yrd Mat Mat Mat Fac Was Fac Combat Hostiles Destroyed 44 | . 3 7 23 1 . 10 Melee 10 | . . . . 1 . 9 Guns 5 | . 3 2 . . . . Cannons 27 | . . 5 22 . . . AOE 1 | . . . . . . 1 Classes Destroyed 11 | 2 2 3 1 . . 3 Worker 4 | . . 1 2 . . 1 Tunneler 3 | 2 . . . . . 1 Hauler 1 | . . . . . . 1 Recycler 2 | 1 . . . . . 1 Operator 1 | . . . . . . 1 Watcher 3 | . 1 . 2 . . . Swarmer 13 | . 3 1 6 . . 3 Grunt 21 | . . 5 15 . . 1 Brawler 1 | . . . 1 . . . Sentry 6 | . . 1 1 1 . 3 Programmer 3 | . . . . . . 3 Best Kill Streak 4 | 2 3 4 4 1 . 3 Combat Bots Only 4 | . 3 3 4 1 . 3 Max Kills in Single Turn 2 | 2 1 1 1 1 . 2 Gunslinging . | . . . . . . . Exploded 1 | . . . . . . 1 Melee 1 | . . . . 1 . 1 Uniques/NPCs Destroyed . | . . . . . . . Combat | -11 -10 -9 -8 -7 -7 -7 -------- Run | Yrd Mat Mat Mat Fac Was Fac Hostile Shots Fired 609 | . 63 42 114 18 4 368 Missed 211 | . 21 12 38 6 . 134 Hits 398 | . 42 30 76 12 4 234 Melee 10 | . . . 6 . 4 . Projectile 388 | . 42 30 70 12 . 234 AOE 2 | . . . . . . 2 Critical Strikes 10 | . . 1 3 . 2 4 Actively Blocked 1 | . . 1 . . . . Part Disruptions 2 | . . . . . . 2 Damage Taken 4521 | . 345 338 1177 91 214 2356 Core 969 | . 54 49 157 6 127 576 Absorbed by Shields 258 | . . . . . . 258 Redirected to Shielding 51 | . . 37 14 . . . Ignored by Resistances 208 | . . . . . . 208 Core Remaining (%) 84 | 100 78 87 71 . . . Volleys Fired 149 | 9 19 20 88 1 . 12 Largest 2 | 2 2 2 2 1 . 1 Hottest 93 | 40 40 56 93 23 . 36 Shots Fired 285 | 18 38 38 176 1 . 14 Gun 78 | 18 38 18 3 1 . . Cannon 193 | . . 20 173 . . . Launcher 14 | . . . . . . 14 Special . | . . . . . . . Kinetic 183 | 18 38 38 88 1 . . Thermal 88 | . . . 88 . . . Explosive 14 | . . . . . . 14 Electromagnetic . | . . . . . . . Robot Hit Streak 27 | 4 5 6 27 9 . 10 Robot Miss Streak 6 | 3 5 2 6 . . 1 Penetration Max . | . . . . . . . Secondary Targets 2 | . 2 . . . . . Max Gunslinging Chain 1 | . 1 . . . . . Shots Hit Robots 177 | 9 17 21 94 4 1 31 Core Hits 85 | 3 5 12 41 2 . 22 Critical Kills 2 | . . 1 1 . . . Critical Parts Destroyed 1 | . . 1 . . . . Critical Strikes 13 | . . 3 8 . . 2 Meltdown 1 | . . . 1 . . . Destroy 2 | . . 2 . . . . Blast 8 | . . 1 7 . . . Sever 2 | . . . . . . 2 Melee Attacks 53 | . . . . 12 1 40 Impact . | . . . . . . . Slashing 53 | . . . . 12 1 40 Piercing . | . . . . . . . Sneak Attacks 1 | . . . . . . 1 Combat Hostiles . | . . . . . . . Follow-up Attacks . | . . . . . . . Damage Inflicted 4151 | 120 196 378 2149 112 19 1177 Guns 530 | 120 196 161 38 15 . . Cannons 2328 | . . 217 2111 . . . Explosions 340 | . . . . . . 340 Melee 953 | . . . . 97 19 837 Ramming . | . . . . . . . Kinetic 1731 | 120 196 378 1022 15 . . Thermal 1127 | . . . 1127 . . . Explosive 340 | . . . . . . 340 Electromagnetic . | . . . . . . . Impact . | . . . . . . . Slashing 953 | . . . . 97 19 837 Piercing . | . . . . . . . Highest Corruption 24 | . . . 3 . 16 24 Average Corruption 18 | . . . 3 . 10 19 Corruption Purged . | . . . . . . . Corruption Blocked . | . . . . . . . Effects 73 | . . . 2 . 5 66 Message Errors 19 | . . . 1 . 1 17 Matter Fused 22 | . . . 1 . 2 19 Heat Flow Errors 5 | . . . . . . 5 Energy Discharges 9 | . . . . . . 9 Parts Rejected 1 | . . . . . 1 . Parts Fused 2 | . . . . . . 2 Data Loss (minor) 5 | . . . . . 1 4 Data Loss (major) 4 | . . . . . . 4 Misfires 2 | . . . . . . 2 Alerts 2 | . . . . . . 2 Misdirections 2 | . . . . . . 2 Overload Shots . | . . . . . . . Overflow Damage 42 | . . . 19 . . 23 Projectiles 19 | . . . 19 . . . Explosions 6 | . . . . . . 6 Melee 17 | . . . . . . 17 Knockbacks 10 | . . . 10 . . . Impact . | . . . . . . . Kinetic 9 | . . . 9 . . . Secondary 1 | . . . 1 . . . Self-Inflicted Damage 38 | . . . . . . 38 Shots 2 | . . . . . . 2 Rammed . | . . . . . . . Targets Rammed . | . . . . . . . Kicked . | . . . . . . . Crushed . | . . . . . . . Highest Temperature 260 | . . 7 213 . . 260 Average Temperature 75 | . . 3 57 . . 119 Received Heat Transfer 1040 | . 6 171 549 30 . 284 Siege Activations . | . . . . . . . Martial Activations . | . . . . . . . Shielding Activations . | . . . . . . . Robots Disrupted . | . . . . . . . Combat Hostiles . | . . . . . . . Robots Corrupted . | . . . . . . . Combat Hostiles . | . . . . . . . Parts Fried . | . . . . . . . Impact Corruptions . | . . . . . . . Robots Melted 1 | . . . 1 . . . Combat Hostiles 1 | . . . 1 . . . Parts Melted . | . . . . . . . Heat Transferred 1813 | . . . 1813 . . . Parts Sabotaged . | . . . . . . . Parts Stolen . | . . . . . . . Parts Stripped . | . . . . . . . Power Chain Reactions . | . . . . . . . Alert | -11 -10 -9 -8 -7 -7 -7 ------- Run | Yrd Mat Mat Mat Fac Was Fac Maximum Alert Level 1 | . . . 1 . . . Low Security (%) 90 | 100 100 100 70 100 100 100 Level 1 9 | . . . 29 . . . Level 2 . | . . . . . . . Level 3 . | . . . . . . . Level 4 . | . . . . . . . Level 5 . | . . . . . . . High Security . | . . . . . . . Max Security . | . . . . . . . Peak Influence 298 | 10 70 127 298 100 2 128 Initial 100 | . . . 49 100 2 . Average 62 | 1 8 26 145 25 . 35 Influence Increases 1666 | 15 88 228 722 55 . 558 Destroy 0b10 Robot/C 880 | . 60 140 460 20 . 200 Destroy 0b10 Robot/NC 70 | 15 5 5 20 . . 25 Destroy Leader 198 | . 12 20 84 10 . 72 Successful Hack 35 | . 11 . . 16 . 8 Disable Machine 150 | . . . 30 . . 120 Destroy Structure 108 | . . 3 23 9 . 73 Lose Combat Pursuer 225 | . . 60 105 . . 60 Influence Decreases 1636 | 15 88 111 618 270 6 528 Entered New Map 193 | . . . 68 121 4 . Time Decay 1122 | 15 48 101 480 149 2 327 Lost Part 210 | . . 10 70 . . 130 Purge Threat 111 | . 40 . . . . 71 Squads Dispatched 7 | . . . 3 . . 4 Investigation 2 | . . . 2 . . . Extermination 3 | . . . . . . 3 Reinforcement 2 | . . . 1 . . 1 Assault . | . . . . . . . Garrison . | . . . . . . . Intercept . | . . . . . . . Searches Triggered . | . . . . . . . Construction Impeded . | . . . . . . . Haulers Reinforced . | . . . . . . . Active Scanning Responses . | . . . . . . . Cargo Convoy Interrupts 1 | . . . . . . 1 Stealth | -11 -10 -9 -8 -7 -7 -7 --------- Run | Yrd Mat Mat Mat Fac Was Fac Distress Signals 9 | . 1 2 5 . . 1 Communications Jammed . | . . . . . . . Distress Signals . | . . . . . . . Times Spotted 100 | . 8 12 39 1 6 34 Peak Tracking Total 11 | . 4 6 5 1 6 11 Tactical Retreats 9 | . . 2 4 . . 3 Traps | -11 -10 -9 -8 -7 -7 -7 ------- Run | Yrd Mat Mat Mat Fac Was Fac Traps Triggered 6 | . . . 2 1 . 3 Indirectly . | . . . . . . . Trap Hack Attempts . | . . . . . . . Triggered . | . . . . . . . Disarmed . | . . . . . . . Reprogrammed . | . . . . . . . Reused . | . . . . . . . Traps Extracted . | . . . . . . . Installed . | . . . . . . . Triggered . | . . . . . . . Machines | -11 -10 -9 -8 -7 -7 -7 ---------- Run | Yrd Mat Mat Mat Fac Was Fac Machines Disabled 10 | . . . 2 . . 8 Max in Single Turn 3 | . . . 1 . . 3 Machines Repaired . | . . . . . . . Machines Dismantled . | . . . . . . . Machines Sabotaged . | . . . . . . . Overloaded Fab Kills . | . . . . . . . Hacking | -11 -10 -9 -8 -7 -7 -7 --------- Run | Yrd Mat Mat Mat Fac Was Fac Machines Accessed 10 | . 2 1 1 2 . 4 Terminals 8 | . 2 . 1 1 . 4 Fabricators 1 | . . . . 1 . . Repair Stations . | . . . . . . . Recycling Units . | . . . . . . . Scanalyzers 1 | . . 1 . . . . Garrison Access . | . . . . . . . Total Hacks 22 | . 8 2 2 4 . 6 Successful 8 | . 3 1 . 2 . 2 Failed 14 | . 5 1 2 2 . 4 Catastrophic 4 | . . . 1 1 . 2 Database Lockouts . | . . . . . . . Manual 17 | . 7 . 2 2 . 6 Terminals 18 | . 8 . 2 2 . 6 Fabricators 2 | . . . . 2 . . Repair Stations . | . . . . . . . Recycling Units . | . . . . . . . Scanalyzers 2 | . . 2 . . . . Garrison Access . | . . . . . . . Terminal Hacks 3 | . 1 . . . . 2 Unreport Threat 3 | . 1 . . . . 2 Fabricator Hacks 1 | . . . . 1 . . Build 1 | . . . . 1 . . Repair Station Hacks . | . . . . . . . Recycling Unit Hacks . | . . . . . . . Scanalyzer 1 | . . 1 . . . . Retrieve Study 1 | . . 1 . . . . Garrison Access Hacks . | . . . . . . . Unauthorized Hacks 3 | . 2 . . 1 . . Terminals 3 | . 2 . . 1 . . Assimilate 1 | . 1 . . . . . Botnet 2 | . 1 . . 1 . . Fabricators . | . . . . . . . Repair Stations . | . . . . . . . Recycling Units . | . . . . . . . Scanalyzers . | . . . . . . . Garrison Access . | . . . . . . . Data Cores Recovered . | . . . . . . . Used . | . . . . . . . Hacking Detections 8 | . 2 . 1 2 . 3 Full Trace Events . | . . . . . . . Feedback Events . | . . . . . . . Feedback Blocked . | . . . . . . . Robot Schematics Acquired . | . . . . . . . Robots Built 2 | . . . . 2 . . Authchips . | . . . . . . . Time 40 | . . . . 40 . . Total Robot Build Rating 2 | . . . . 2 . . Part Schematics Acquired . | . . . . . . . Parts Built . | . . . . . . . Authchips . | . . . . . . . Time . | . . . . . . . Total Part Build Rating . | . . . . . . . Part Studies Acquired 1 | . . 1 . . . . Parts Repaired . | . . . . . . . Time . | . . . . . . . Parts Recycled . | . . . . . . . Recycled Matter . | . . . . . . . Retrieved Matter . | . . . . . . . Retrieved Components . | . . . . . . . Parts Scanalyzed . | . . . . . . . Part Schematics Acquired . | . . . . . . . Parts Damaged . | . . . . . . . Bothacking | -11 -10 -9 -8 -7 -7 -7 ------------ Run | Yrd Mat Mat Mat Fac Was Fac Used RIF Installer . | . . . . . . . Robots Hacked . | . . . . . . . Non-combat . | . . . . . . . Combat . | . . . . . . . Robot Hacks Applied . | . . . . . . . Relay Couplers Released . | . . . . . . . Fabnet Peak Effective % . | . . . . . . . Robots Rewired . | . . . . . . . Allies Hacked . | . . . . . . . Hacks Repelled . | . . . . . . . Allies | -11 -10 -9 -8 -7 -7 -7 -------- Run | Yrd Mat Mat Mat Fac Was Fac Total Allies 2 | . . . . 2 . . Largest Group 2 | . . . . 2 1 . Highest-Rated Group 20 | . . . . 20 10 . Highest-Rated Ally 10 | . . . . 10 10 . Total Orders . | . . . . . . . Ally Attacks . | . . . . . . . Total Damage . | . . . . . . . Kills . | . . . . . . . Allies Corrupted . | . . . . . . . Allies Melted . | . . . . . . . Intel | -11 -10 -9 -8 -7 -7 -7 ------- Run | Yrd Mat Mat Mat Fac Was Fac Active Infowar (turns) 2887 | 52 69 394 810 393 151 1018 Terrain 1567 | . . 258 . 140 151 1018 Seismic 1865 | 52 69 394 810 393 147 . Robot Analysis Total . | . . . . . . . Derelict Logs Recovered . | . . . . . . . Drone Launches . | . . . . . . . Drone Recoveries . | . . . . . . . Exploration | -11 -10 -9 -8 -7 -7 -7 ------------- Run | Yrd Mat Mat Mat Fac Was Fac Turns Passed 4531 | 152 399 394 1381 484 172 1549 Spaces Moved 2922 | 74 211 183 616 339 161 1338 Core 270 | 5 . . . . 48 217 Treads 1127 | 69 211 183 583 26 32 23 Legs . | . . . . . . . Wheels 1525 | . . . 33 313 81 1098 Hover . | . . . . . . . Flight . | . . . . . . . Fastest Speed 50 | 50 160 160 105 105 50 50 Average Speed 124 | 152 160 160 162 112 101 99 Slowest Speed 500 | 160 160 160 225 165 170 500 Overloaded Moves . | . . . . . . . Propulsion Burnouts . | . . . . . . . Robots Hopped . | . . . . . . . Potential Cave-ins 7 | . . . . . . 7 Cave-ins Triggered . | . . . . . . . Exploration Rate (%) 30 | 4 35 14 47 10 73 29 Regions Visited 6 Branch Regions . Pre-discovered Areas . | . . . . . . . Known Exits Taken . | . . . . . . . Unknown Exits Taken 4 | 1 1 1 1 . . . Scrap Searched . | . . . . . . . Spaces Dug 41 | . . . 3 9 . 29 Terrain Destroyed 161 | . . 2 21 9 . 129 Melee 14 | . . . . 9 . 5 Projectile 23 | . . 2 21 . . . AOE 124 | . . . . . . 124 Terrain Rammed . | . . . . . . . Walls Destroyed . | . . . . . . . Machines Disabled . | . . . . . . . Actions | -11 -10 -9 -8 -7 -7 -7 --------- Run | Yrd Mat Mat Mat Fac Was Fac Total 3464 | 94 239 246 818 425 166 1476 Wait 182 | . . 33 80 51 . 18 Move 2917 | 73 210 182 615 339 160 1338 Hop . | . . . . . . . Pick Up 51 | 5 3 4 17 9 . 13 Fast Attach 28 | 6 1 1 2 1 . 17 Attach 32 | 1 1 2 9 2 3 14 Detach 7 | . 2 . . . 1 4 Swap 15 | . 1 2 3 4 1 4 Drop 22 | . 2 2 4 6 . 8 Fire 149 | 9 19 20 88 1 . 12 Melee 53 | . . . . 12 1 40 Ram . | . . . . . . . Kick . | . . . . . . . Crush . | . . . . . . . Escape Stasis 8 | . . . . . . 8 Rewire . | . . . . . . . Trap . | . . . . . . . Miscellaneous . | . . . . . . . Route ------- -11/Scrapyard -10/Materials -9/Materials -8/Materials -7/Factory -7/Waste -7/Factory History --------- Turn | Location | Event 20 | -11/Scrapyard | Discovered new exit (range 15) 153 | -11/Scrapyard | Entered Materials 300 | -10/Materials | Build established: Mutant 505 | -10/Materials | Discovered new exit (range 5) 552 | -10/Materials | Entered another Materials area 552 | -9/Materials | Evolved 2 slots: Utility x2 910 | -9/Materials | Discovered new exit (range 14) 946 | -9/Materials | Entered another Materials area 946 | -8/Materials | Evolved 2 slots: Propulsion x1, Utility x1 1420 | -8/Materials | Discovered new exit (range 16) 2310 | -8/Materials | Lost 3 parts (1n2w) 2327 | -8/Materials | Entered Factory 2327 | -7/Factory | Evolved 2 slots: Utility x2 2701 | -7/Factory | Fabricated T-07 Excavator (x2) 2811 | -7/Factory | Sucked down chute 2811 | -7/Factory | Entered Waste 2816 | -7/Waste | 1 allies followed down the chute 2826 | -7/Waste | EMP discharged 2849 | -7/Waste | Spotted C-40 Crusher 2876 | -7/Waste | Spotted C-40 Crusher 2879 | -7/Waste | Spotted C-40 Crusher 2899 | -7/Waste | Crushed by Compactor (1 part destroyed, 1 dropped) 2926 | -7/Waste | EMP discharged 2926 | -7/Waste | System corruption reached 10% 2944 | -7/Waste | Spotted C-40 Crusher 2946 | -7/Waste | Spotted C-40 Crusher 2947 | -7/Waste | Crushed by Compactor (1 part destroyed, 1 dropped) 2958 | -7/Waste | Crushed by Compactor (1 part destroyed, 1 dropped) 2962 | -7/Waste | Crushed by Compactor (1 part destroyed, 2 dropped) 2965 | -7/Waste | Spotted C-40 Crusher 2975 | -7/Waste | Discovered new exit (range 16) 2983 | -7/Waste | Entered Factory 2993 | -7/Factory | Lost 4 parts (1p1n1u1w) 3406 | -7/Factory | Core integrity fell below 50% 3480 | -7/Factory | Lost 4 parts (1n2u1w) 4459 | -7/Factory | Lost 3 parts (1n1u1w) 4508 | -7/Factory | Cargo convoy interrupted 4508 | -7/Factory | Core integrity fell below 20% 4513 | -7/Factory | Build established: Scavenger-Mutant 4532 | -7/Factory | Destroyed by A-27 Freighter with PD Laser Last Messages --------------- 04516_ Door malfunctions. 04517_ P-60 Hacker resets A-27 Freighter, system corruption cleaned. 04517_ Slug penetrates Wall. 04518_ Imp. Deuterium Engine destroyed. 04520_ P-60 Hacker resets H-55 Commando, system corruption cleaned. 04520_ Penetrated by Slug. 04520_ Lgt. Treads+ destroyed. 04522_ M-28 Smith repairs H-55 Commando. 04522_ P-60 Hacker resets H-55 Commando, system corruption cleaned. 04525_ P-60 Hacker resets X-67 Chaingunner, system corruption cleaned. 04527_ U-05 Engineer repairs door. 04527_ P-60 Hacker resets I-36 Angel, system corruption cleaned. 04529_ U-05 Engineer builds a Door. 04529_ Wheel destroyed. 04530_ System corrupted: Component data lost. Map ----- +----------------------------------------------------+ | ?????????????????????????????????????????????????? | | ?????????????????????????????????????????????????? | | ?????????????????????????????????????????????????? | | ?????????????????????????????????????????????????? | | ?????????????????????????????????????????????????? | | ?????????????????????????????????????????????????? | | ?????????????????????????????????????????????????? | | ?????????????????????????????????????????????????? | | ?????????????????????????????????????????????????? | | ?????????????????????????????????????????????????? | | ?????????????????????????????????????????????????? | | ?????????????????????????????????????????????????? | | ?????????????????????????????#???????????????????? | | ????????????????????? ?????????#?????????????????? | | ????????????????????? ????????? ?????????????????? | | ????????????????????? ????#????"?????????????????? | | ??????????????????????#???????"??"???????????????? | | ??????????????????#????####??????????????????????? | | ?????????????????? ???? w #??????????????????????? | | ???????????????? ???? ? #??????????????????????? | | ???????????????? ????? +??? ?????????????????? | | ??????????????? ?? ? ? #?? ??????????????????? | | ????????????? ? ? ? ?? # ???? ??? ???????????? | | ???????????????##??##???# #????? ?? ????????????? | | ?????????????##?#?##?##?# #??R? ??? ? ??????????? | | ???????????? ? ?#@#?"??? ????????????????? | | ???????????#? """ """ # ######???#?????????????? | | ????????? ?# ? """ """ # #T ####? ?? ???????????? | | ?????? ?? ## ??"" """ /r + ?"?????????????? | | ???????? ?##? # #??"?? ??????????? | | ???????? ###############p # "?"???????????? | | ???????? ##### puA + ?????????? | | ???#???? ?##### [#h####### """ ??????????? | | ????? ? ##### !#x ?## """?"?????????? | | ????? #####= " ! ??# ?"? ??????????? | | ???#???? #####%* [ "= ! ## ?? ???????????? | | ????#?? #####= = %= " ## ???????????? | | ????? ? ##### % % * " % ## ?????????????? | | ?????? ? ##??# %% # !## ? ?????????????? | | ????#? ??#####/# #/#############??????????????? | | ????#?? ?##### #####%#############??????????????? | | ????? ##?## ##### #########?####?????????????? | | ?????? ? ##?## ##?#####?##??#?????????????? | | ?????? ? ? ###?# #####?####?##??????????????? | | ????? ?? ? ##### #####?##?###???????????????? | | ???????? ? #####?# #?########?#???????????????? | | ?????? ? """ # ? # ######?####?#??????????????? | | ??????? ?""? # ? # #####??###??#??????????????? | | ????#?? """ ?# # #########?#????????????????? | | ???#??? ? # ?""# #?#######?#????????????????? | +----------------------------------------------------+ Best States ------------- Heat Dissipation 48 Energy Generation 16 Energy Capacity 290 Matter Stores 300 Matter Capacity 300 Sight Range 16 Terrain Scan Range 16 Terrain Scan Density 210 Armor Coverage 675 Resistance: KI 30 Propulsion Shielding 33 Evasion (%) 50 Targeting Accuracy 8 Target Analysis 5 Recoil Reduction 3 Offensive Hacking 10 Item Schematics ----------------- None Robot Schematics ------------------ None Fabricated ------------ T-07 Excavator | x2 | -7/Factory | Preloaded Repaired ---------- Nothing Studied --------- Lgt. Treads | -9/Materials | Hacked Alien Tech Used ----------------- None Achievements -------------- None Challenges ------------ None Game ------ Seed TacticalDiametricMatrix Manual? 0 Play Time 00:40:08 Cumulative 53.4 hours Start 2026.03.02 @ 22:48:06 End 2026.03.02 @ 23:21:36 Sessions 1 Manual Loads 0 Difficulty Rogue Special Mode None Game No. 125 Rogue 125 Adventurer 0 Explorer 0 Win Type - Total 0 Types 0/0/0/0/0/0/0/0/0/0 Lore% 30 Gallery% 38 Achievement% 30 Wizard Run 0 Options --------- Layout 2 ASCII 0 Keyboard 1 Movement Arrows Keybinds 0 Fullscreen 1 Font 24/Smallcaps Map View 50x44 Zoom Use 0% Tactical HUD 1 Map Filters NONE Filters NONE Steam 1 RUN: feee38c7-ce94-4bff-86f9-73946157cf13